[Event "EYCC Girls-U12 2019"]
[Site "Bratislava"]
[Date "2019.08.08"]
[Round "7.10"]
[White "Ivanova, Dilyana"]
[Black "Maria, Lia-Alexandra"]
[Result "1-0"]
[ECO "B90"]
[WhiteElo "1734"]
[BlackElo "1572"]
[Annotator "NA"]
[PlyCount "65"]
[EventDate "2019.08.02"]
[EventType "swiss"]
[EventCountry "SVK"]
[SourceTitle "playchess.com"]
[Source "ChessBase"]
[SourceQuality "1"]
[TimeControl "40/5400+30:1800+30"]

1. e4 {[%emt 0:00:00]} c5 {[%emt 0:00:00]} 2. Nf3 {[%emt 0:00:00]} d6 {[%emt 0:00:00]} 3. d4 {[%emt 0:00:00]} cxd4 {[%emt 0:00:00]} 4. Nxd4 {[%emt 0:00:00]} Nf6 {[%emt 0:00:00]} 5. Nc3 {[%emt 0:00:00]} a6 {[%emt 0:00:00]} 6. f3 {[%emt 0:00:38]} b5 {[%emt 0:01:02]} 7. Be3 {[%emt 0:01:37]} e6 {[%emt 0:00:09]} 8. g4 {[%emt 0:02:00]} h6 {[%emt 0:04:16]} 9. Qd2 {[%emt 0:00:52]} b4 {[%emt 0:01:44]} 10. Nce2 {[%emt 0:02:10]} d5 {[%emt 0:01:04]} 11. e5 {[%emt 0:03:32]} Nfd7 {[%emt 0:00:33]} 12. f4 {[%emt 0:05:10]} Bb7 {[%emt 0:04:44]} 13. O-O-O {[%emt 0:04:26]} Nb6 {[%emt 0:08:24]} 14. Ng3 {[%emt 0:10:14]} N8d7 {[%emt 0:05:00]} 15. f5 {[%emt 0:10:49]} Nc5 {[%emt 0:15:13]} 16. Qf2 {[%emt 0:09:43]} Nba4 {[%emt 0:12:58]} 17. Bh3 {[%emt 0:07:27]} Qa5 {[%emt 0:08:54]} 18. fxe6 {[%emt 0:15:39]} fxe6 {[%emt 0:04:45]} 19. Rhf1 {[%emt 0:03:39]} O-O-O {[%emt 0:09:56]} 20. g5 {[%emt 0:05:08]} Re8 {[%emt 0:06:05]} 21. Nxe6 {[%emt 0:06:25]} Kb8 {[%emt 0:04:30]} 22. Nxc5 {[%emt 0:04:14]} Bxc5 {[%emt 0:02:17]} 23. e6 {[%emt 0:02:26]} hxg5 {[%emt 0:01:58]} 24. Bg4 {[%emt 0:01:07]} Bxe3+ {[%emt 0:02:40]} 25. Qxe3 {[%emt 0:00:02]} Rxh2 {[%emt 0:00:40]} 26. Qe5+ {[%emt 0:01:36]} Ka8 {[%emt 0:00:25]} 27. e7 {[%emt 0:00:25]} Qc5 {[%emt 0:03:00]} 28. Ne2 {[%emt 0:00:11]} Rxe7 {[%emt 0:00:45]} 29. Qxh2 {[%emt 0:00:44]} Qc4 {[%emt 0:00:57]} 30. Rf8+ {[%emt 0:00:52]} Ka7 {[%emt 0:00:12]} 31. Qb8+ {[%emt 0:00:22]} Kb6 {[%emt 0:00:06]} 32. Qd6+ {[%emt 0:00:06]} Ka7 {[%emt 0:00:13]} 33. Qxe7 {[%emt 0:00:23]} 1-0

[Event "EYCC Girls-U12 2019"]
[Site "Bratislava"]
[Date "2019.08.08"]
[Round "7.11"]
[White "Suarez Gomez, Paula"]
[Black "Nordquelle, Amelia"]
[Result "1-0"]
[ECO "B20"]
[WhiteElo "1438"]
[BlackElo "1648"]
[Annotator "NA"]
[PlyCount "53"]
[EventDate "2019.08.02"]
[EventType "swiss"]
[EventCountry "SVK"]
[SourceTitle "playchess.com"]
[Source "ChessBase"]
[SourceQuality "1"]
[TimeControl "40/5400+30:1800+30"]

1. e4 {[%emt 0:00:00]} c5 {[%emt 0:00:13]} 2. d3 {[%emt 0:00:12]} e6 {[%emt 0:07:00]} 3. g3 {[%emt 0:00:14]} Nc6 {[%emt 0:01:17]} 4. f4 {[%emt 0:00:33]} Nge7 {[%emt 0:06:07]} 5. Nf3 {[%emt 0:00:24]} d5 {[%emt 0:02:00]} 6. e5 {[%emt 0:00:29]} d4 {[%emt 0:02:07]} 7. Bg2 {[%emt 0:05:46]} b5 {[%emt 0:06:38]} 8. c3 {[%emt 0:08:45]} Bb7 {[%emt 0:02:45]} 9. O-O {[%emt 0:08:11]} Qb6 {[%emt 0:14:35]} 10. Kh1 {[%emt 0:06:41]} Nd5 {[%emt 0:11:28]} 11. c4 {[%emt 0:08:07]} Nc7 {[%emt 0:11:05]} 12. Nbd2 {[%emt 0:03:41]} Nb4 {[%emt 0:07:42]} 13. Nb3 {[%emt 0:12:25]} a5 14. a3 {[%emt 0:04:18]} Nxd3 {[%emt 0:11:49]} 15. Qxd3 {[%emt 0:03:51]} bxc4 {[%emt 0:00:18]} 16. Qxc4 {[%emt 0:00:17]} Ba6 {[%emt 0:01:53]} 17. Qc2 {[%emt 0:00:49]} d3 {[%emt 0:00:40]} 18. Qd1 {[%emt 0:03:12]} d2 {[%emt 0:02:58]} 19. Nbxd2 {[%emt 0:13:50]} Bxf1 {[%emt 0:00:14]} 20. Bxf1 {[%emt 0:00:09]} O-O-O {[%emt 0:01:52]} 21. Qe2 {[%emt 0:03:01]} Nd5 {[%emt 0:02:29]} 22. Nc4 {[%emt 0:02:08]} Qc7 {[%emt 0:00:54]} 23. Bd2 {[%emt 0:00:33]} Qa7 {[%emt 0:01:12]} 24. Nxa5 {[%emt 0:03:40]} Rd7 {[%emt 0:01:44]} 25. Rc1 {[%emt 0:02:27]} Rc7 {[%emt 0:00:40]} 26. Qb5 {[%emt 0:01:02]} f6 {[%emt 0:02:33]} 27. Qe8# 1-0

[Event "EYCC Girls-U12 2019"]
[Site "Bratislava"]
[Date "2019.08.08"]
[Round "7.12"]
[White "Siekanska, Maria"]
[Black "Chicarosie, Ioana-Bianca"]
[Result "1-0"]
[ECO "D35"]
[WhiteElo "1561"]
[BlackElo "1580"]
[Annotator "NA"]
[PlyCount "111"]
[EventDate "2019.08.02"]
[EventType "swiss"]
[EventCountry "SVK"]
[SourceTitle "playchess.com"]
[Source "ChessBase"]
[SourceQuality "1"]
[TimeControl "40/5400+30:1800+30"]

1. d4 {[%emt 0:00:00]} d5 {[%emt 0:00:00]} 2. c4 {[%emt 0:00:00]} e6 {[%emt 0:00:00]} 3. Nc3 {[%emt 0:00:00]} Nf6 {[%emt 0:00:00]} 4. cxd5 {[%emt 0:00:00]} exd5 {[%emt 0:00:00]} 5. Bg5 {[%emt 0:00:00]} c6 {[%emt 0:00:24]} 6. e3 {[%emt 0:00:26]} Be7 {[%emt 0:00:10]} 7. Bd3 {[%emt 0:00:23]} Nbd7 {[%emt 0:00:16]} 8. Nge2 {[%emt 0:00:18]} Nh5 {[%emt 0:00:24]} 9. Bxe7 {[%emt 0:00:14]} Qxe7 {[%emt 0:00:07]} 10. O-O {[%emt 0:00:21]} O-O {[%emt 0:00:49]} 11. Qb1 {[%emt 0:00:29]} g6 {[%emt 0:02:29]} 12. b4 {[%emt 0:00:44]} f5 {[%emt 0:31:23]} 13. b5 {[%emt 0:04:42]} Nb6 {[%emt 0:04:41]} 14. bxc6 {[%emt 0:01:51]} bxc6 {[%emt 0:00:05]} 15. a4 {[%emt 0:03:22]} Be6 {[%emt 0:01:37]} 16. a5 {[%emt 0:05:10]} Nc4 {[%emt 0:02:27]} 17. Qc2 {[%emt 0:01:38]} Bf7 {[%emt 0:05:01]} 18. Na4 {[%emt 0:02:08]} Nxa5 {[%emt 0:06:29]} 19. Nb2 {[%emt 0:01:06]} Qc7 {[%emt 0:02:54]} 20. Rfc1 {[%emt 0:01:37]} Be8 {[%emt 0:07:23]} 21. Nc3 {[%emt 0:04:14]} Qd8 {[%emt 0:04:48]} 22. Be2 {[%emt 0:13:02]} Nf6 {[%emt 0:04:54]} 23. Nd3 {[%emt 0:02:07]} Nc4 {[%emt 0:13:42]} 24. Nc5 {[%emt 0:02:58]} Bf7 {[%emt 0:01:22]} 25. Bxc4 {[%emt 0:00:55]} dxc4 {[%emt 0:00:09]} 26. N3a4 {[%emt 0:01:08]} Nd5 {[%emt 0:01:28]} 27. Nb2 {[%emt 0:01:27]} Nb6 {[%emt 0:00:48]} 28. Nb7 {[%emt 0:02:06]} Qd5 {[%emt 0:01:50]} 29. Na5 {[%emt 0:01:35]} c5 {[%emt 0:00:32]} 30. dxc5 {[%emt 0:14:45]} Qxc5 {[%emt 0:00:12]} 31. Nb3 {[%emt 0:05:49]} Qc7 {[%emt 0:00:43]} 32. Nd4 {[%emt 0:00:28]} Qc5 {[%emt 0:00:49]} 33. Nd3 {[%emt 0:01:27]} Qc7 {[%emt 0:01:54]} 34. Nf4 {[%emt 0:01:52]} Rfe8 {[%emt 0:00:47]} 35. h4 {[%emt 0:02:08]} a6 {[%emt 0:01:29]} 36. Qc3 {[%emt 0:02:14]} Nd5 {[%emt 0:00:55]} 37. Nxd5 {[%emt 0:00:01]} Bxd5 {[%emt 0:00:05]} 38. h5 {[%emt 0:00:33]} Reb8 {[%emt 0:02:09]} 39. Ne2 {[%emt 0:03:55]} Rc8 {[%emt 0:02:52]} 40. Nf4 {[%emt 0:00:00]} Bf7 {[%emt 0:00:00]} 41. h6 {[%emt 0:02:18]} Be8 {[%emt 0:02:41]} 42. Nd5 {[%emt 0:00:19]} Qa7 {[%emt 0:00:54]} 43. Nb6 {[%emt 0:03:05]} Rc7 {[%emt 0:00:51]} 44. Nxa8 {[%emt 0:00:15]} Qxa8 {[%emt 0:00:03]} 45. Qe5 {[%emt 0:00:52]} Ra7 {[%emt 0:01:27]} 46. Rxa6 {[%emt 0:01:04]} Ba4 {[%emt 0:00:58]} 47. Qg7+ {[%emt 0:00:19]} Rxg7 {[%emt 0:00:12]} 48. Rxa8+ {[%emt 0:00:04]} Kf7 {[%emt 0:00:09]} 49. hxg7 {[%emt 0:00:04]} Kxg7 {[%emt 0:00:17]} 50. Rxa4 {[%emt 0:00:03]} c3 {[%emt 0:00:08]} 51. Rxc3 {[%emt 0:00:06]} h5 {[%emt 0:00:06]} 52. Rc6 {[%emt 0:00:12]} Kh6 {[%emt 0:00:05]} 53. Raa6 {[%emt 0:00:09]} Kg5 {[%emt 0:00:05]} 54. Rxg6+ {[%emt 0:00:18]} Kh4 {[%emt 0:00:10]} 55. Ra4+ {[%emt 0:00:04]} f4 {[%emt 0:00:15]} 56. Rxf4# {[%emt 0:00:03]} 1-0

[Event "EYCC Girls-U12 2019"]
[Site "Bratislava"]
[Date "2019.08.08"]
[Round "7.13"]
[White "Mikheeva, Galina"]
[Black "Karavitaki, Antonia"]
[Result "1-0"]
[ECO "B24"]
[WhiteElo "1952"]
[BlackElo "1481"]
[Annotator "NA"]
[PlyCount "87"]
[EventDate "2019.08.02"]
[EventType "swiss"]
[EventCountry "SVK"]
[SourceTitle "playchess.com"]
[Source "ChessBase"]
[SourceQuality "1"]
[TimeControl "40/5400+30:1800+30"]

1. e4 {[%emt 0:00:00]} c5 {[%emt 0:00:00]} 2. Nc3 {[%emt 0:00:00]} Nc6 {[%emt 0:00:00]} 3. g3 {[%emt 0:00:00]} g6 {[%emt 0:00:00]} 4. Bg2 {[%emt 0:00:00]} Bg7 {[%emt 0:00:02]} 5. d3 {[%emt 0:00:00]} e6 {[%emt 0:00:18]} 6. Be3 {[%emt 0:01:14]} d6 {[%emt 0:00:26]} 7. f4 {[%emt 0:00:58]} Nge7 {[%emt 0:00:50]} 8. Nf3 {[%emt 0:00:09]} O-O {[%emt 0:00:12]} 9. O-O {[%emt 0:00:07]} b6 {[%emt 0:00:10]} 10. d4 {[%emt 0:00:56]} d5 {[%emt 0:00:35]} 11. exd5 {[%emt 0:14:39]} Nf5 {[%emt 0:00:34]} 12. Bf2 {[%emt 0:00:07]} Ncxd4 {[%emt 0:01:20]} 13. dxe6 {[%emt 0:07:20]} Bxe6 {[%emt 0:01:57]} 14. g4 {[%emt 0:11:17]} Nh6 {[%emt 0:13:18]} 15. h3 {[%emt 0:01:32]} Nxf3+ {[%emt 0:08:29]} 16. Qxf3 {[%emt 0:08:47]} Qc7 {[%emt 0:08:04]} 17. Rfe1 {[%emt 0:06:38]} Rad8 {[%emt 0:01:44]} 18. Red1 {[%emt 0:26:52]} a6 {[%emt 0:02:23]} 19. a4 {[%emt 0:00:56]} Rfe8 {[%emt 0:02:17]} 20. Bg3 {[%emt 0:06:47]} Qc8 {[%emt 0:01:46]} 21. Qc6 {[%emt 0:02:28]} Bd4+ {[%emt 0:10:52]} 22. Bf2 {[%emt 0:03:18]} Qb8 {[%emt 0:06:55]} 23. Qf3 {[%emt 0:00:08]} Bg7 {[%emt 0:01:05]} 24. Kh1 {[%emt 0:01:45]} f5 {[%emt 0:02:51]} 25. g5 {[%emt 0:00:13]} Nf7 {[%emt 0:00:12]} 26. Rxd8 {[%emt 0:02:24]} Rxd8 {[%emt 0:00:30]} 27. Re1 {[%emt 0:00:03]} Re8 {[%emt 0:01:30]} 28. Qc6 {[%emt 0:01:24]} Rf8 {[%emt 0:15:31]} 29. Qxe6 {[%emt 0:00:35]} Qxf4 {[%emt 0:00:06]} 30. Qe3 {[%emt 0:00:37]} Qxg5 {[%emt 0:02:50]} 31. Qxg5 {[%emt 0:00:03]} Nxg5 {[%emt 0:00:04]} 32. h4 {[%emt 0:00:11]} Nf7 {[%emt 0:00:43]} 33. Bd5 {[%emt 0:00:51]} Bf6 {[%emt 0:02:00]} 34. Re6 {[%emt 0:00:26]} Bd8 {[%emt 0:00:17]} 35. a5 {[%emt 0:01:06]} Kg7 {[%emt 0:01:28]} 36. axb6 {[%emt 0:00:13]} h6 {[%emt 0:01:25]} 37. Bxc5 {[%emt 0:00:29]} Rg8 {[%emt 0:00:26]} 38. Be7 {[%emt 0:00:46]} Nh8 {[%emt 0:00:59]} 39. Bxd8 {[%emt 0:00:27]} Rxd8 {[%emt 0:00:08]} 40. Re7+ {[%emt 0:00:00]} Kf6 {[%emt 0:00:00]} 41. Rc7 {[%emt 0:01:05]} g5 {[%emt 0:00:29]} 42. hxg5+ {[%emt 0:00:23]} hxg5 {[%emt 0:00:05]} 43. b7 {[%emt 0:00:06]} Ng6 {[%emt 0:00:13]} 44. Rc8 {[%emt 0:00:25]} 1-0

[Event "EYCC Girls-U12 2019"]
[Site "Bratislava"]
[Date "2019.08.08"]
[Round "7.14"]
[White "Paraschiv, Petronela-Alexandra"]
[Black "Schippke, Manon"]
[Result "0-1"]
[ECO "B53"]
[WhiteElo "1810"]
[BlackElo "1743"]
[Annotator "NA"]
[PlyCount "78"]
[EventDate "2019.08.02"]
[EventType "swiss"]
[EventCountry "SVK"]
[SourceTitle "playchess.com"]
[Source "ChessBase"]
[SourceQuality "1"]
[TimeControl "40/5400+30:1800+30"]

1. e4 {[%emt 0:00:00]} c5 {[%emt 0:00:00]} 2. Nf3 {[%emt 0:00:00]} d6 {[%emt 0:00:35]} 3. d4 {[%emt 0:00:15]} cxd4 {[%emt 0:00:07]} 4. Qxd4 {[%emt 0:00:18]} Bd7 {[%emt 0:01:33]} 5. c4 {[%emt 0:00:44]} Nc6 {[%emt 0:01:07]} 6. Qd2 {[%emt 0:00:27]} Nf6 {[%emt 0:00:49]} 7. Nc3 {[%emt 0:00:51]} g6 {[%emt 0:01:41]} 8. b3 {[%emt 0:00:51]} Bg7 {[%emt 0:01:16]} 9. Bb2 {[%emt 0:00:44]} O-O {[%emt 0:01:00]} 10. Be2 {[%emt 0:00:45]} Qa5 {[%emt 0:01:07]} 11. Nd5 {[%emt 0:02:37]} Qxd2+ {[%emt 0:01:01]} 12. Nxd2 {[%emt 0:00:11]} Nxd5 {[%emt 0:01:03]} 13. Bxg7 {[%emt 0:00:09]} Kxg7 {[%emt 0:00:27]} 14. cxd5 {[%emt 0:00:53]} Nd4 {[%emt 0:02:05]} 15. Rc1 {[%emt 0:00:35]} Rfc8 {[%emt 0:04:50]} 16. Rc4 {[%emt 0:26:04]} Nxe2 {[%emt 0:04:08]} 17. Rxc8 {[%emt 0:00:21]} Rxc8 {[%emt 0:00:04]} 18. Kxe2 {[%emt 0:00:08]} Bb5+ {[%emt 0:01:38]} 19. Kd1 {[%emt 0:04:03]} Bd3 {[%emt 0:03:27]} 20. Re1 {[%emt 0:01:17]} Bc2+ {[%emt 0:09:00]} 21. Ke2 {[%emt 0:00:15]} f5 {[%emt 0:04:30]} 22. f3 {[%emt 0:02:25]} b5 {[%emt 0:02:56]} 23. Ke3 {[%emt 0:01:31]} Rc3+ {[%emt 0:02:02]} 24. Ke2 {[%emt 0:02:01]} f4 {[%emt 0:01:39]} 25. g3 {[%emt 0:02:02]} Bd3+ {[%emt 0:01:22]} 26. Kd1 {[%emt 0:01:24]} Rc2 {[%emt 0:01:09]} 27. Nf1 {[%emt 0:06:17]} Rxa2 {[%emt 0:04:19]} 28. gxf4 {[%emt 0:00:21]} Bc2+ {[%emt 0:00:40]} 29. Kc1 {[%emt 0:00:42]} Ra1+ {[%emt 0:03:29]} 30. Kd2 {[%emt 0:00:11]} Rxe1 {[%emt 0:00:12]} 31. Kxe1 {[%emt 0:00:07]} Bxb3 {[%emt 0:00:03]} 32. Kd2 {[%emt 0:00:44]} b4 {[%emt 0:02:07]} 33. Kd3 {[%emt 0:01:03]} a5 {[%emt 0:01:34]} 34. Nd2 {[%emt 0:00:47]} Ba4 {[%emt 0:07:35]} 35. e5 {[%emt 0:03:19]} Bb5+ {[%emt 0:00:45]} 36. Kd4 {[%emt 0:01:39]} a4 {[%emt 0:01:16]} 37. h3 {[%emt 0:05:29]} a3 {[%emt 0:03:56]} 38. Nb3 {[%emt 0:00:24]} Ba4 {[%emt 0:00:45]} 39. Nd2 {[%emt 0:09:03]} a2 {[%emt 0:04:08]} 0-1

[Event "EYCC Girls-U12 2019"]
[Site "Bratislava"]
[Date "2019.08.08"]
[Round "7.15"]
[White "Khegai, Darya"]
[Black "Fileru, Maria"]
[Result "1/2-1/2"]
[ECO "C25"]
[WhiteElo "1402"]
[BlackElo "1602"]
[Annotator "NA"]
[PlyCount "97"]
[EventDate "2019.08.02"]
[EventType "swiss"]
[EventCountry "SVK"]
[SourceTitle "playchess.com"]
[Source "ChessBase"]
[SourceQuality "1"]
[TimeControl "40/5400+30:1800+30"]

1. e4 {[%emt 0:00:00]} e5 {[%emt 0:00:00]} 2. Nc3 {[%emt 0:01:02]} d6 {[%emt 0:04:16]} 3. Bc4 {[%emt 0:01:19]} Nf6 {[%emt 0:00:28]} 4. d3 {[%emt 0:01:14]} h6 {[%emt 0:00:21]} 5. f4 {[%emt 0:01:49]} Nc6 {[%emt 0:00:57]} 6. a3 {[%emt 0:02:03]} Bg4 {[%emt 0:06:34]} 7. Nge2 {[%emt 0:02:45]} Nd4 {[%emt 0:02:25]} 8. h3 {[%emt 0:05:01]} Be6 {[%emt 0:06:18]} 9. Bxe6 {[%emt 0:09:37]} fxe6 {[%emt 0:00:04]} 10. Nxd4 {[%emt 0:01:59]} exd4 {[%emt 0:00:03]} 11. Ne2 {[%emt 0:00:07]} c5 {[%emt 0:01:52]} 12. O-O {[%emt 0:01:58]} Be7 {[%emt 0:01:38]} 13. Bd2 {[%emt 0:09:28]} O-O {[%emt 0:00:33]} 14. g4 {[%emt 0:06:03]} Nh7 {[%emt 0:00:39]} 15. Kh1 {[%emt 0:04:56]} g5 {[%emt 0:01:47]} 16. f5 {[%emt 0:01:21]} e5 {[%emt 0:00:16]} 17. Ng3 {[%emt 0:08:06]} b5 {[%emt 0:02:36]} 18. Nh5 {[%emt 0:05:53]} a5 {[%emt 0:06:53]} 19. c3 {[%emt 0:05:13]} a4 {[%emt 0:01:42]} 20. b3 {[%emt 0:06:51]} d5 {[%emt 0:00:48]} 21. Rf2 {[%emt 0:01:43]} dxe4 {[%emt 0:00:35]} 22. dxe4 {[%emt 0:00:04]} Qb6 {[%emt 0:09:00]} 23. b4 {[%emt 0:06:11]} Rac8 {[%emt 0:11:40]} 24. cxd4 {[%emt 0:06:09]} cxd4 {[%emt 0:01:13]} 25. Rc1 {[%emt 0:00:53]} Rc6 {[%emt 0:02:15]} 26. Be1 {[%emt 0:01:36]} Rfc8 {[%emt 0:02:49]} 27. Rfc2 {[%emt 0:00:08]} Qb7 {[%emt 0:05:27]} 28. Qd3 {[%emt 0:01:40]} Kf7 {[%emt 0:08:07]} 29. Bg3 {[%emt 0:01:20]} Bd6 {[%emt 0:00:12]} 30. Kg2 {[%emt 0:02:03]} Nf6 {[%emt 0:00:12]} 31. Nxf6 {[%emt 0:00:03]} Kxf6 {[%emt 0:00:01]} 32. Bf2 {[%emt 0:02:49]} Qa6 {[%emt 0:01:35]} 33. Bg3 {[%emt 0:01:54]} Rc4 {[%emt 0:00:35]} 34. h4 {[%emt 0:01:22]} Qc6 {[%emt 0:00:15]} 35. hxg5+ {[%emt 0:00:29]} hxg5 {[%emt 0:00:01]} 36. Rxc4 {[%emt 0:00:35]} bxc4 {[%emt 0:00:01]} 37. Qe2 {[%emt 0:00:41]} d3 {[%emt 0:01:40]} 38. Qe3 {[%emt 0:00:09]} d2 {[%emt 0:05:22]} 39. Rd1 {[%emt 0:01:24]} c3 {[%emt 0:00:17]} 40. Bh4 {[%emt 0:00:00]} Rg8 {[%emt 0:00:00]} 41. Rh1 {[%emt 0:02:21]} c2 {[%emt 0:10:04]} 42. Bxg5+ {[%emt 0:04:02]} Kf7 {[%emt 0:01:26]} 43. Rh7+ {[%emt 0:00:32]} Ke8 {[%emt 0:00:25]} 44. Qxd2 {[%emt 0:03:14]} Qxe4+ {[%emt 0:00:12]} 45. Kg3 {[%emt 0:00:08]} Rxg5 {[%emt 0:07:25]} 46. Rh8+ {[%emt 0:00:44]} Kf7 {[%emt 0:01:03]} 47. Rh7+ {[%emt 0:03:14]} Ke8 {[%emt 0:01:44]} 48. Rh8+ {[%emt 0:00:08]} Kf7 {[%emt 0:00:07]} 49. Rh7+ {[%emt 0:00:12]} 1/2-1/2

[Event "EYCC Girls-U12 2019"]
[Site "Bratislava"]
[Date "2019.08.08"]
[Round "7.16"]
[White "Komissarova, Soigina"]
[Black "Shahazizyan, Milena"]
[Result "1-0"]
[ECO "B47"]
[WhiteElo "1663"]
[BlackElo "1201"]
[Annotator "NA"]
[PlyCount "49"]
[EventDate "2019.08.02"]
[EventType "swiss"]
[EventCountry "SVK"]
[SourceTitle "playchess.com"]
[Source "ChessBase"]
[SourceQuality "1"]
[TimeControl "40/5400+30:1800+30"]

1. e4 {[%emt 0:00:00]} c5 {[%emt 0:00:00]} 2. Nf3 {[%emt 0:00:00]} e6 {[%emt 0:00:02]} 3. d4 {[%emt 0:00:10]} cxd4 {[%emt 0:00:15]} 4. Nxd4 {[%emt 0:00:31]} Nc6 {[%emt 0:00:23]} 5. Nc3 {[%emt 0:00:48]} Qc7 {[%emt 0:00:45]} 6. g3 {[%emt 0:01:27]} a6 {[%emt 0:00:49]} 7. Bg2 {[%emt 0:01:10]} Nf6 {[%emt 0:01:23]} 8. O-O {[%emt 0:01:31]} Be7 {[%emt 0:01:20]} 9. Re1 {[%emt 0:01:36]} O-O {[%emt 0:02:08]} 10. Nxc6 {[%emt 0:02:04]} bxc6 {[%emt 0:02:35]} 11. e5 {[%emt 0:01:41]} Nd5 {[%emt 0:01:26]} 12. Qg4 {[%emt 0:20:26]} Kh8 {[%emt 0:10:33]} 13. Bd2 {[%emt 0:20:23]} Rb8 {[%emt 0:05:40]} 14. b3 {[%emt 0:01:12]} d6 {[%emt 0:05:55]} 15. exd6 {[%emt 0:01:17]} Bxd6 {[%emt 0:02:54]} 16. Qe2 {[%emt 0:01:15]} Bb7 {[%emt 0:11:12]} 17. Ne4 {[%emt 0:05:16]} Be7 {[%emt 0:14:12]} 18. c4 {[%emt 0:08:09]} Nb4 {[%emt 0:01:34]} 19. a3 {[%emt 0:01:06]} Nc2 {[%emt 0:01:40]} 20. Bf4 {[%emt 0:00:18]} Nd4 {[%emt 0:04:43]} 21. Bxc7 {[%emt 0:00:36]} Nxe2+ {[%emt 0:00:16]} 22. Rxe2 {[%emt 0:00:28]} Rbc8 {[%emt 0:00:42]} 23. Bd6 {[%emt 0:00:39]} Rfe8 {[%emt 0:05:19]} 24. Bxe7 {[%emt 0:01:31]} Rxe7 {[%emt 0:00:12]} 25. Rd2 {[%emt 0:02:33]} 1-0

[Event "EYCC Girls-U12 2019"]
[Site "Bratislava"]
[Date "2019.08.08"]
[Round "7.17"]
[White "Mikhailina, Olga"]
[Black "Sala, Giulia"]
[Result "0-1"]
[ECO "C54"]
[WhiteElo "1410"]
[BlackElo "1623"]
[Annotator "NA"]
[PlyCount "90"]
[EventDate "2019.08.02"]
[EventType "swiss"]
[EventCountry "SVK"]
[SourceTitle "playchess.com"]
[Source "ChessBase"]
[SourceQuality "1"]
[TimeControl "40/5400+30:1800+30"]

1. e4 {[%emt 0:00:00]} e5 {[%emt 0:00:00]} 2. Nf3 {[%emt 0:00:00]} Nc6 {[%emt 0:00:04]} 3. Bc4 {[%emt 0:00:00]} Bc5 {[%emt 0:00:14]} 4. c3 {[%emt 0:00:00]} Nf6 {[%emt 0:00:48]} 5. d4 {[%emt 0:00:00]} exd4 {[%emt 0:00:38]} 6. e5 {[%emt 0:00:00]} d5 {[%emt 0:04:08]} 7. Bb5 {[%emt 0:00:00]} Ne4 {[%emt 0:01:14]} 8. cxd4 {[%emt 0:00:09]} Bb6 {[%emt 0:01:19]} 9. Nc3 {[%emt 0:00:14]} Bg4 {[%emt 0:01:48]} 10. Be3 {[%emt 0:08:21]} O-O {[%emt 0:03:06]} 11. h3 {[%emt 0:00:24]} Bh5 {[%emt 0:00:47]} 12. Bxc6 {[%emt 0:32:50]} bxc6 {[%emt 0:01:13]} 13. Rc1 {[%emt 0:11:54]} Nxc3 {[%emt 0:09:03]} 14. bxc3 {[%emt 0:02:30]} Qe7 {[%emt 0:05:14]} 15. O-O {[%emt 0:17:18]} f6 {[%emt 0:09:06]} 16. g4 {[%emt 0:11:00]} Bg6 {[%emt 0:05:30]} 17. exf6 {[%emt 0:01:57]} Qxf6 {[%emt 0:02:50]} 18. Ne5 {[%emt 0:00:31]} Be8 {[%emt 0:04:04]} 19. Qd2 {[%emt 0:03:28]} h6 {[%emt 0:08:44]} 20. Kh2 {[%emt 0:03:11]} Ba5 {[%emt 0:13:49]} 21. Qc2 {[%emt 0:04:18]} c5 {[%emt 0:03:42]} 22. Rg1 {[%emt 0:01:19]} cxd4 {[%emt 0:10:49]} 23. cxd4 {[%emt 0:00:03]} Bb6 {[%emt 0:00:26]} 24. Qc3 {[%emt 0:00:37]} Bg6 {[%emt 0:04:04]} 25. g5 {[%emt 0:01:33]} hxg5 {[%emt 0:01:43]} 26. Rxg5 {[%emt 0:00:27]} Be4 {[%emt 0:02:41]} 27. Rcg1 {[%emt 0:00:28]} Rae8 {[%emt 0:02:30]} 28. Qd2 {[%emt 0:00:52]} Re7 {[%emt 0:00:49]} 29. R5g3 {[%emt 0:00:30]} c5 {[%emt 0:01:13]} 30. Bg5 {[%emt 0:00:31]} Qxf2+ {[%emt 0:00:53]} 31. Qxf2 {[%emt 0:00:29]} Rxf2+ {[%emt 0:00:10]} 32. R1g2 {[%emt 0:00:31]} Rxg2+ {[%emt 0:02:01]} 33. Rxg2 {[%emt 0:00:05]} Rxe5 {[%emt 0:01:03]} 34. dxe5 {[%emt 0:00:17]} Bxg2 {[%emt 0:00:02]} 35. Kxg2 {[%emt 0:00:13]} Kf7 {[%emt 0:00:04]} 36. Kf3 {[%emt 0:00:56]} Ke6 {[%emt 0:00:01]} 37. Bf4 {[%emt 0:00:31]} Bc7 {[%emt 0:00:16]} 38. Be3 {[%emt 0:00:44]} d4 {[%emt 0:00:09]} 39. Bc1 {[%emt 0:00:35]} Bxe5 {[%emt 0:00:13]} 40. Ba3 {[%emt 0:00:00]} Kd5 {[%emt 0:00:00]} 41. h4 {[%emt 0:07:45]} c4 {[%emt 0:01:31]} 42. h5 {[%emt 0:02:58]} d3 {[%emt 0:01:46]} 43. Ke3 {[%emt 0:02:45]} Bd4+ {[%emt 0:01:31]} 44. Kd2 {[%emt 0:00:08]} Ke4 {[%emt 0:00:33]} 45. Bb4 {[%emt 0:03:43]} c3+ {[%emt 0:02:04]} 0-1